fUST/lending_fUST_20240917
["ID","MTS","AMOUNT","RATE_DAILY","PERIOD"]
[338332302,1726504241466,-500.0,0.00018795,2]
[338332303,1726504241475,-500.0,0.00018795,2]
[338332304,1726504241485,-500.0,0.00018795,2]
[338332305,1726504241495,-500.0,0.00018795,2]
[338332306,1726504241505,-500.0,0.00018795,2]
[338332307,1726504241515,-422.88779023,0.00018795,2]
[338332308,1726504241524,-500.0,0.00018795,2]
[338332309,1726504241533,-500.0,0.00018795,2]
[338332310,1726504241543,-500.0,0.00018795,2]
[338332311,1726504241552,-500.0,0.00018795,2]
[338332312,1726504241562,-500.0,0.00018795,2]
[338332313,1726504241571,-500.0,0.00018795,2]
[338332314,1726504241580,-500.0,0.00018795,2]
[338332315,1726504241589,-500.0,0.00018795,2]
[338332316,1726504241598,-500.0,0.00018795,2]
[338332317,1726504241607,-500.0,0.00018795,2]
[338332318,1726504241616,-500.0,0.00018795,2]
[338332319,1726504241625,-500.0,0.00018795,2]
[338332320,1726504241634,-500.0,0.00018795,2]
[338332321,1726504241645,-500.0,0.00018795,2]
[338332322,1726504241654,-500.0,0.00018795,2]
[338332323,1726504241663,-500.0,0.00018795,2]
[338332324,1726504241674,-285.87642114,0.00018795,2]
[338332325,1726504241861,-500.0,0.00018795,2]
[338332326,1726504241882,-500.0,0.00018795,2]
[338332327,1726504241891,-500.0,0.00018795,2]
[338332328,1726504241900,-500.0,0.00018795,2]
[338332329,1726504241909,-500.0,0.00018795,2]
[338332330,1726504241919,-500.0,0.00018795,2]
[338332331,1726504241927,-500.0,0.00018795,2]
[338332332,1726504241936,-500.0,0.00018795,2]
[338332333,1726504241948,-500.0,0.00018795,2]
[338332334,1726504241958,-492.97826825,0.00018795,2]
[338332335,1726504241969,-500.0,0.00018795,2]
[338332336,1726504241978,-500.0,0.00018795,2]
[338332337,1726504241987,-500.0,0.00018795,2]
[338332338,1726504241996,-500.0,0.00018795,2]
[338332339,1726504242006,-500.0,0.00018795,2]
[338332340,1726504242015,-500.0,0.00018795,2]
[338332341,1726504242026,-500.0,0.00018795,2]
[338332342,1726504242036,-500.0,0.00018795,2]
[338332343,1726504242046,-500.0,0.00018795,2]
[338332344,1726504242056,-500.0,0.00018795,2]
[338332345,1726504242066,-500.0,0.00018795,2]
[338332346,1726504242076,-500.0,0.00018795,2]
[338332347,1726504242086,-500.0,0.00018795,2]
[338332348,1726504242095,-500.0,0.00018795,2]
[338332349,1726504242104,-500.0,0.00018795,2]
[338332350,1726504242114,-500.0,0.00018795,2]
[338332351,1726504242123,-500.0,0.00018795,2]
[338332352,1726504242132,-500.0,0.00018795,2]
[338332353,1726504242143,-500.0,0.00018795,2]
[338332354,1726504242155,-500.0,0.00018795,2]
[338332355,1726504242165,-500.0,0.00018795,2]
[338332356,1726504242175,-59801.7329998,0.00018796,2]
[338332357,1726504242185,-1915.21417675,0.00018796,2]
[338332358,1726504242195,-189.45981143,0.00018797,2]
[338332359,1726504242205,-195.6211683,0.00018797,2]
[338332360,1726504242216,-500.0,0.00018797,2]
[338332361,1726504242225,-500.0,0.00018797,2]
[338332362,1726504242235,-500.0,0.00018797,2]
[338332363,1726504242244,-408.24420067,0.00018797,2]
[338332364,1726504242254,-500.0,0.00018797,2]
[338332365,1726504242266,-161.13939395,0.00018797,2]
[338332366,1726504242275,-500.0,0.00018797,2]
[338332367,1726504242284,-546.9043543,0.00018797,2]
[338332368,1726504242294,-500.0,0.00018797,2]
[338332369,1726504242303,-500.0,0.00018797,2]
[338332370,1726504242312,-500.0,0.00018797,2]
[338332371,1726504242321,-500.0,0.00018797,2]
[338332372,1726504242331,-399.78004121,0.00018797,2]
[338332373,1726504242340,-500.0,0.00018797,2]
[338332374,1726504242350,-500.0,0.00018797,2]
[338332375,1726504242359,-500.0,0.00018797,2]
[338332376,1726504242369,-500.0,0.00018797,2]
[338332377,1726504242378,-500.0,0.00018797,2]
[338332378,1726504242388,-500.0,0.00018797,2]
[338332379,1726504242397,-500.0,0.00018797,2]
[338332380,1726504242407,-500.0,0.00018797,2]
[338332381,1726504242417,-550.0,0.00018797,2]
[338332382,1726504242426,-179405.198999,0.00018798,2]
[338332383,1726504242435,-5745.64253025,0.00018798,2]
[338332384,1726504242445,-3000.0,0.000188,2]
[338332385,1726504242454,-160.0,0.000188,2]
[338332386,1726504242464,-298.68702191,0.00018804,2]
[338332387,1726504242474,-3000.0,0.0001881,2]
[338332388,1726504242484,-3000.0,0.0001882,2]
[338332389,1726504242493,-3000.0,0.0001883,2]
[338332390,1726504242503,-151.0,0.00018838,2]
[338332391,1726504242512,-151.0,0.00018838,2]
[338332392,1726504242523,-151.0,0.00018838,2]
[338332393,1726504242532,-151.0,0.00018838,2]
[338332394,1726504242541,-954.580825,0.00018838,2]
[338332395,1726504242552,-954.580825,0.00018838,2]
[338332396,1726504242561,-151.0,0.00018838,2]
[338332397,1726504242570,-151.0,0.00018838,2]
[338332398,1726504242580,-59801.7329998,0.00018838,2]
[338332399,1726504242590,-5745.64253025,0.00018838,3]
[338332400,1726504242599,-3000.0,0.0001884,2]
[338332401,1726504242608,-3000.0,0.0001885,2]
[338332402,1726504242617,-152.87589,0.0001885,2]
[338332403,1726504242626,-151.0,0.0001885,2]
[338332404,1726504242635,-3000.0,0.0001886,2]
[338332405,1726504242644,-3000.0,0.0001887,2]
[338332406,1726504242654,-3830.4283535,0.0001887,3]
[338332407,1726504242663,-3000.0,0.0001888,2]
[338332408,1726504242672,-151.0,0.0001888,2]
[338332409,1726504242682,-151.893092,0.0001888,2]
[338332410,1726504242691,-151.0,0.0001888,2]
[338332411,1726504242701,-151.0,0.0001888,2]
[338332412,1726504242710,-151.0,0.0001888,2]
[338332413,1726504242719,-151.0,0.0001888,2]
[338332414,1726504242728,-151.0,0.0001888,2]
[338332415,1726504242737,-151.0,0.0001888,2]
[338332416,1726504242746,-151.0,0.0001888,2]
[338332417,1726504242756,-186.807193,0.0001888,2]
[338332418,1726504242765,-186.807193,0.0001888,2]
[338332419,1726504242778,-361.459464,0.0001888,2]
[338332420,1726504242787,-361.459464,0.0001888,2]
[338332421,1726504242800,-151.0,0.0001888,2]
[338332422,1726504242810,-151.0,0.0001888,2]
[338332423,1726504242819,-163.291566,0.0001888,2]
[338332424,1726504242828,-216.009582,0.0001888,2]
[338332425,1726504242837,-163.291566,0.0001888,2]
[338332426,1726504242846,-151.0,0.0001888,2]
[338332427,1726504242855,-151.0,0.0001888,2]
[338332428,1726504242866,-1672.693884,0.0001888,2]
[338332429,1726504242874,-151.0,0.0001888,2]
[338332430,1726504242884,-1672.693884,0.0001888,2]
[338332431,1726504242894,-151.0,0.0001888,2]
[338332432,1726504242903,-151.0,0.0001888,2]
[338332433,1726504242912,-483.070475,0.0001888,2]
[338332434,1726504242921,-483.070475,0.0001888,2]
[338332435,1726504242930,-151.0,0.0001888,2]
[338332436,1726504242940,-151.0,0.0001888,2]
[338332437,1726504242949,-151.0,0.0001888,2]
[338332438,1726504242960,-151.0,0.0001888,2]
[338332439,1726504242969,-151.693322,0.0001888,2]
[338332440,1726504242980,-3000.0,0.0001889,2]
[338332441,1726504242990,-189.45981143,0.00018898,2]
[338332442,1726504243001,-3000.0,0.000189,2]
[338332443,1726504243013,-2187.9571509,0.000189,2]
[338332445,1726504243024,-783.6260137,0.000189,3]
[338332448,1726504243039,-828.12622737,0.000189,3]
[338332460,1726504243573,-4133.89028918,0.000189,3]
[338332461,1726504243583,-309.8751819,0.00018904,2]
[338332462,1726504243594,-3000.0,0.0001891,2]
[338332463,1726504243603,-159.649681,0.0001891,2]
[338332464,1726504243612,-224.383354,0.0001891,2]
[338332465,1726504243622,-151.0,0.0001891,2]
[338332466,1726504243631,-151.0,0.0001891,2]
[338332467,1726504243641,-151.0,0.0001891,2]
[338332468,1726504243651,-151.0,0.0001891,2]
[338332469,1726504243660,-151.0,0.0001891,2]
[338332470,1726504243669,-151.0,0.0001891,2]
[338332471,1726504243680,-186.807193,0.0001891,2]
[338332472,1726504243692,-186.807193,0.0001891,2]
[338332473,1726504243701,-361.459464,0.0001891,2]
[338332474,1726504243712,-361.459464,0.0001891,2]
[338332475,1726504243722,-4000.0,0.0001891,2]
[338332476,1726504243732,-4000.0,0.0001891,2]
[338332477,1726504243743,-4000.0,0.0001891,2]
[338332478,1726504243754,-4000.0,0.0001891,2]
[338332479,1726504243763,-4000.0,0.0001891,2]
[338332480,1726504243773,-726.523665,0.0001891,2]
[338332481,1726504243783,-151.0,0.0001891,2]
[338332482,1726504243796,-151.0,0.0001891,2]
[338332483,1726504243807,-163.291566,0.0001891,2]
[338332484,1726504243817,-163.291566,0.0001891,2]
[338332485,1726504243827,-151.0,0.0001891,2]
[338332486,1726504243837,-1672.693884,0.0001891,2]
[338332487,1726504243847,-151.0,0.0001891,2]
[338332488,1726504243859,-1672.693884,0.0001891,2]
[338332489,1726504243870,-154.125207,0.0001891,2]
[338332490,1726504243879,-299.35488,0.0001891,2]
[338332491,1726504243889,-483.070475,0.0001891,2]
[338332492,1726504243900,-483.070475,0.0001891,2]
[338332493,1726504243910,-151.0,0.0001891,2]
[338332494,1726504243920,-151.0,0.0001891,2]
[338332495,1726504243930,-151.0,0.0001891,2]
[338332496,1726504243939,-151.0,0.0001891,2]
[338332497,1726504243948,-186.05303845,0.0001891,2]
[338332498,1726504243958,-3000.0,0.0001892,2]
[338332499,1726504243967,-3830.4283535,0.00018929,3]
[338332500,1726504243977,-3000.0,0.0001893,2]
[338332501,1726504243987,-151.0,0.00018939,2]
[338332502,1726504243996,-151.0,0.00018939,2]
[338332503,1726504244006,-151.0,0.00018939,2]
[338332504,1726504244016,-151.0,0.00018939,2]
[338332505,1726504244025,-249.856661,0.00018939,2]
[338332506,1726504244035,-186.807193,0.00018939,2]
[338332507,1726504244046,-186.807193,0.00018939,2]
[338332508,1726504244056,-361.459464,0.00018939,2]
[338332509,1726504244067,-361.459464,0.00018939,2]
[338332510,1726504244077,-151.3934,0.00018939,2]
[338332511,1726504244088,-151.0,0.00018939,2]
[338332512,1726504244098,-163.291566,0.00018939,2]
[338332514,1726504244108,-163.291566,0.00018939,2]
[338332516,1726504244119,-151.0,0.00018939,2]
[338332517,1726504244128,-1672.693884,0.00018939,2]
[338332518,1726504244138,-151.0,0.00018939,2]
[338332519,1726504244149,-1672.693884,0.00018939,2]
[338332520,1726504244159,-483.070475,0.00018939,2]
[338332521,1726504244169,-483.070475,0.00018939,2]
[338332522,1726504244180,-151.0,0.00018939,2]
[338332523,1726504244190,-151.0,0.00018939,2]
[338332524,1726504244200,-151.0,0.00018939,2]
[338332525,1726504244210,-179.88746,0.00018939,2]
[338332526,1726504244220,-151.0,0.00018939,2]
[338332527,1726504244229,-151.0,0.00018939,2]
[338332528,1726504244238,-151.0,0.00018939,2]
[338332529,1726504244251,-151.0,0.00018939,2]
[338332530,1726504244262,-954.580825,0.00018939,2]
[338332531,1726504244272,-954.580825,0.00018939,2]
[338332532,1726504244281,-151.0,0.00018939,2]
[338332533,1726504244292,-151.0,0.00018939,2]
[338332534,1726504244303,-3000.0,0.0001894,2]
[338332535,1726504244315,-3000.0,0.0001895,2]
[338332536,1726504244326,-1915.21417675,0.0001895,3]
[338332537,1726504244336,-151.0,0.0001895,2]
[338332538,1726504244347,-3000.0,0.0001896,2]
[338332539,1726504244360,-3000.0,0.0001897,2]
[338332540,1726504244369,-3830.4283535,0.0001897,3]
[338332541,1726504244379,-3000.0,0.0001898,2]
[338332542,1726504244388,-151.0,0.0001898,2]
[338332543,1726504244398,-284.853426,0.0001898,2]
[338332544,1726504244407,-186.807193,0.0001898,2]
[338332545,1726504244416,-186.807193,0.0001898,2]
[338332546,1726504244426,-361.459464,0.0001898,2]
[338332547,1726504244439,-361.459464,0.0001898,2]
[338332548,1726504244449,-151.0,0.0001898,2]
[338332549,1726504244459,-163.291566,0.0001898,2]
[338332550,1726504244469,-163.291566,0.0001898,2]
[338332551,1726504244479,-151.0,0.0001898,2]
[338332552,1726504244488,-1672.693884,0.0001898,2]
[338332553,1726504244498,-151.0,0.0001898,2]
[338332554,1726504244508,-1672.693884,0.0001898,2]
[338332555,1726504244518,-235.22323111,0.0001898,2]
[338332556,1726504244531,-247.84724389,0.0001898,2]
[338332557,1726504244540,-483.070475,0.0001898,2]
[338332558,1726504244549,-120.68228111,0.0001898,2]
[338332633,1726504507985,169.240024,0.00013699,2]
[338332652,1726505003875,161.409048,0.00013699,2]
[338332653,1726505080233,154.0,0.0001401,2]
[338332655,1726505236152,-250.0,0.00016683,2]
[338332656,1726505236174,-205.63381386,0.00016929,2]
[338332657,1726505247147,-94.36618614,0.00016929,2]
[338332658,1726505247169,-300.0,0.00016929,2]
[338332659,1726505247205,-9328.60145883,0.0001693,2]
[338332660,1726505253116,-330.06150596,0.0001693,2]
[338332661,1726505360199,-300.0,0.00016929,2]
[338332662,1726505360218,-300.0,0.00016929,2]
[338332663,1726505360238,-15241.33703521,0.0001693,2]
[338332664,1726505360258,-252.991427,0.00017007,2]
[338332665,1726505360278,-1425.27807077,0.00017107,2]
[338332666,1726505370508,-85.06035353,0.00017107,2]
[338332667,1726505412386,256.62483822,0.00017228,2]
[338332697,1726505431766,-314.08318632,0.00017228,2]
[338332700,1726505431778,-579.51994738,0.00017228,2]
[338332702,1726505431788,-163.33333366,0.00017603,2]
[338332704,1726505431797,-382.48777342,0.00018,8]
[338332747,1726505437902,-617.51222658,0.00018,8]
[338332749,1726505437913,-646.5113986,0.0001809,2]
[338332751,1726505437923,-859.6204284,0.00018145,2]
[338332753,1726505437933,-300.0,0.00018451,2]
[338332755,1726505437943,-300.0,0.00018451,2]
[338332757,1726505437952,-500.0,0.00018452,7]
[338332759,1726505437962,-500.0,0.00018452,7]
[338332761,1726505437972,-500.0,0.00018452,7]
[338332763,1726505437981,-500.0,0.00018452,7]
[338332766,1726505437997,-500.0,0.00018452,7]
[338332769,1726505438011,-500.0,0.00018452,7]
[338332771,1726505438022,-500.0,0.00018452,7]
[338332773,1726505438032,-500.0,0.00018452,7]
[338332775,1726505438042,-500.0,0.00018452,7]
[338332777,1726505438053,-500.0,0.00018452,7]
[338332779,1726505438064,-500.0,0.00018452,7]
[338332782,1726505438075,-500.0,0.00018452,7]
[338332784,1726505438086,-500.0,0.00018452,7]
[338332786,1726505438097,-500.0,0.00018452,7]
[338332788,1726505438107,-500.0,0.00018452,7]
[338332790,1726505438117,-500.0,0.00018452,7]
[338332792,1726505438130,-500.0,0.00018452,7]
[338332795,1726505438140,-500.0,0.00018452,7]
[338332797,1726505438150,-500.0,0.00018452,7]
[338332799,1726505438160,-277.16477266,0.00018452,7]
[338332805,1726505438207,-222.83522734,0.00018452,7]
[338332807,1726505438217,-500.0,0.00018452,7]
[338332809,1726505438228,-357.49451099,0.00018452,7]
[338332900,1726505439929,-142.50548901,0.00018452,7]
[338332901,1726505439943,-500.0,0.00018452,7]
[338332902,1726505439955,-500.0,0.00018452,7]
[338332903,1726505439964,-500.0,0.00018452,7]
[338332904,1726505439975,-500.0,0.00018452,7]
[338332905,1726505439984,-500.0,0.00018452,7]
[338332906,1726505439994,-500.0,0.00018452,7]
[338332907,1726505440004,-500.0,0.00018452,7]
[338332908,1726505440014,-500.0,0.00018452,7]
[338332909,1726505440025,-500.0,0.00018452,7]
[338332910,1726505440036,-500.0,0.00018452,7]
[338332911,1726505440046,-500.0,0.00018452,7]
[338332912,1726505440055,-500.0,0.00018452,7]
[338332913,1726505440065,-500.0,0.00018452,7]
[338332914,1726505440074,-500.0,0.00018452,7]
[338332915,1726505440083,-500.0,0.00018452,7]
[338332916,1726505440093,-500.0,0.00018452,7]
[338332917,1726505440103,-500.0,0.00018452,7]
[338332918,1726505440112,-594.27,0.00018452,7]
[338332919,1726505440122,-500.0,0.00018452,7]
[338332920,1726505440136,-500.0,0.00018452,7]
[338332921,1726505440145,-500.0,0.00018452,7]
[338332922,1726505440154,-500.0,0.00018452,7]
[338332923,1726505440164,-500.0,0.00018452,7]
[338332924,1726505440174,-500.0,0.00018452,7]
[338332925,1726505440184,-500.0,0.00018452,7]
[338332926,1726505440194,-500.0,0.00018452,7]
[338332927,1726505440205,-500.0,0.00018452,7]
[338332928,1726505440215,-500.0,0.00018452,7]
[338332929,1726505440224,-500.0,0.00018452,7]
[338332930,1726505440233,-500.0,0.00018452,7]
[338332931,1726505440242,-500.0,0.00018452,7]
[338332932,1726505440252,-500.0,0.00018452,7]
[338332933,1726505440261,-500.0,0.00018452,7]
[338332934,1726505440270,-500.0,0.00018452,7]
[338332935,1726505440280,-500.0,0.00018452,7]
[338332936,1726505440289,-500.0,0.00018452,7]
[338332937,1726505440299,-500.0,0.00018452,7]
[338332938,1726505440308,-500.0,0.00018452,7]
[338332939,1726505440317,-490.53,0.00018452,7]
[338332940,1726505440327,-859.6204284,0.00018645,2]
[338332941,1726505440337,-6430.59975319,0.00018676,2]
[338332942,1726505440346,-189.45981143,0.0001879,2]
[338332943,1726505440356,-1000.0,0.0001879,2]
[338332944,1726505440366,-1000.0,0.00018798,2]
[338332945,1726505440375,-1000.0,0.00018798,2]
[338332946,1726505440385,-1000.0,0.00018798,2]
[338332947,1726505440395,-1000.0,0.00018798,2]
[338332948,1726505440405,-1000.0,0.00018798,2]
[338332949,1726505440415,-1000.0,0.00018798,2]
[338332950,1726505440424,-1000.0,0.00018798,2]
[338332951,1726505440435,-1000.0,0.00018798,2]
[338332952,1726505440445,-1000.0,0.00018798,2]
[338332953,1726505440454,-1000.0,0.00018798,2]
[338332954,1726505440463,-316.88142378,0.00018798,2]
[338332955,1726505440473,-3000.0,0.000188,2]
[338332956,1726505440482,-3000.0,0.0001881,2]
[338332957,1726505440491,-3000.0,0.0001882,2]
[338332958,1726505440501,-3000.0,0.0001883,2]
[338332959,1726505440511,-164.0,0.0001884,2]
[338332960,1726505440520,-3000.0,0.0001884,2]
[338332961,1726505440530,-468.06,0.00018849,3]
[338332962,1726505440540,-3000.0,0.0001885,2]
[338332963,1726505440553,-500.0,0.00018858,2]
[338332964,1726505440563,-500.0,0.00018858,2]
[338332965,1726505440573,-500.0,0.00018858,2]
[338332966,1726505440582,-500.0,0.00018858,2]
[338332967,1726505440592,-500.0,0.00018858,2]
[338332968,1726505440601,-282.55314092,0.00018858,2]
[338332969,1726505440610,-500.0,0.00018858,2]
[338332970,1726505440620,-500.0,0.00018858,2]
[338332971,1726505440630,-500.0,0.00018858,2]
[338332972,1726505440640,-500.0,0.00018858,2]
[338332973,1726505440649,-270.87642114,0.00018858,2]
[338332974,1726505440659,-500.0,0.00018858,2]
[338332975,1726505440668,-43071.76909171,0.00018859,3]
[338332985,1726505442751,-2230.13775919,0.00018859,3]
[338332986,1726505442761,-3000.0,0.0001886,2]
[338332987,1726505442775,-47841.3863999,0.00018869,2]
[338332988,1726505442785,-31231.5723913,0.00018869,3]
[338332996,1726505475034,150.5,0.0001895,120]
[338332997,1726505475094,150.5,0.0001895,120]
[338332998,1726505475225,150.5,0.0001894,120]
[338332999,1726505475324,254.82,0.0001894,120]
[338333000,1726505475718,150.5,0.0001893,120]
[338333001,1726505476462,150.5,0.0001999,120]
[338333002,1726505476659,150.5,0.0001998,120]
[338333003,1726505477221,150.5,0.0001997,120]
[338333005,1726505572761,167.009295,0.00013699,2]
[338333014,1726506084824,160.692851,0.00013699,2]
[338333018,1726506428178,-300.0,0.00017229,2]
[338333019,1726506428201,-67.35207281,0.00017229,2]
[338333021,1726506478685,468.06,0.00010959,2]
[338333023,1726506548284,-1596.17387199,0.00017129,2]
[338333024,1726506548307,-300.0,0.00017229,2]
[338333025,1726506548335,-24612.84434125,0.0001723,2]
[338333027,1726506572135,-287.15565875,0.0001723,2]
[338333028,1726506578241,259.61574125,0.0001401,2]
[338333029,1726506578264,266.80402424,0.0001401,2]
[338333030,1726506578286,187.39023451,0.0001401,2]
[338333031,1726506598145,170.819257,0.00013699,2]
[338333033,1726506626838,500.0,0.000188,60]
[338333147,1726506635072,500.0,0.000188,60]
[338333148,1726506636367,500.0,0.000188,60]
[338333162,1726506637993,-252.9914272,0.00017301,2]
[338333164,1726506638005,-3000.00000001,0.00017718,2]
[338333165,1726506638015,-793.9123212,0.00018145,2]
[338333166,1726506638025,-411.3603175,0.000182,2]
[338333167,1726506638034,-411.3603175,0.000182,2]
[338333168,1726506638044,-300.0,0.00018351,2]
[338333169,1726506638054,-300.0,0.00018351,2]
[338333170,1726506638064,-4697.25992426,0.00018352,2]
[338333171,1726506638074,-189.45981143,0.00018352,2]
[338333172,1726506638083,-411.3603175,0.000184,2]
[338333173,1726506638093,-411.3603175,0.000184,2]
[338333174,1726506638103,-47841.3863999,0.00018441,2]
[338333175,1726506638113,-43740.3282314,0.00018441,2]
[338333176,1726506638126,-500.0,0.00018448,2]
[338333177,1726506638135,-500.0,0.00018448,2]
[338333178,1726506638145,-447.37869632,0.00018448,2]
[338333179,1726506638155,-10956.0,0.00018449,2]
[338333181,1726506638165,-998.90631029,0.0001845,2]
[338333182,1726506638175,-65226.92406626,0.00018451,2]
[338333183,1726506638186,-500.0,0.00018452,7]
[338333184,1726506638196,-500.0,0.00018452,7]
[338333185,1726506638205,-500.0,0.00018452,7]
[338333186,1726506638215,-500.0,0.00018452,7]
[338333187,1726506638225,-500.0,0.00018452,7]
[338333188,1726506638235,-500.0,0.00018452,7]
[338333189,1726506638245,-500.0,0.00018452,7]
[338333190,1726506638254,-500.0,0.00018452,7]
[338333191,1726506638264,-500.0,0.00018452,7]
[338333192,1726506638274,-500.0,0.00018452,7]
[338333193,1726506638284,-500.0,0.00018452,7]
[338333194,1726506638293,-500.0,0.00018452,7]
[338333195,1726506638303,-500.0,0.00018452,7]
[338333196,1726506638313,-500.0,0.00018452,7]
[338333197,1726506638323,-500.0,0.00018452,7]
[338333198,1726506638333,-500.0,0.00018452,7]
[338333199,1726506638343,-500.0,0.00018452,7]
[338333200,1726506638355,-500.0,0.00018452,7]
[338333201,1726506638365,-500.0,0.00018452,7]
[338333202,1726506638378,-500.0,0.00018452,7]
[338333203,1726506638388,-500.0,0.00018452,7]
[338333204,1726506638397,-500.0,0.00018452,7]
[338333205,1726506638407,-500.0,0.00018452,7]
[338333206,1726506638418,-500.0,0.00018452,7]
[338333207,1726506638428,-584.8,0.00018452,7]
[338333208,1726506638438,-500.0,0.00018452,7]
[338333209,1726506638448,-500.0,0.00018452,7]
[338333210,1726506638458,-500.0,0.00018452,7]
[338333211,1726506638467,-500.0,0.00018452,7]
[338333212,1726506638476,-500.0,0.00018452,7]
[338333213,1726506638488,-500.0,0.00018452,7]
[338333214,1726506638498,-500.0,0.00018452,7]
[338333215,1726506638507,-500.0,0.00018452,7]
[338333216,1726506638516,-500.0,0.00018452,7]
[338333217,1726506638527,-500.0,0.00018452,7]
[338333218,1726506638536,-500.0,0.00018452,7]
[338333219,1726506638546,-500.0,0.00018452,7]
[338333220,1726506638555,-500.0,0.00018452,7]
[338333221,1726506638567,-500.0,0.00018452,7]
[338333222,1726506638578,-411.3603175,0.000185,2]
[338333223,1726506638587,-6430.59975319,0.00018556,2]
[338333224,1726506638597,-189.45981143,0.00018621,2]
[338333225,1726506638606,-793.9123212,0.00018645,2]
[338333226,1726506638616,-179.29611121,0.00018719,2]
[338333227,1726506638629,-500.0,0.00018719,2]
[338333228,1726506638638,-500.0,0.00018719,2]
[338333229,1726506638647,-500.0,0.00018719,2]
[338333230,1726506638657,-436.38961386,0.00018719,2]
[338333231,1726506638666,-500.0,0.00018719,2]
[338333232,1726506638676,-500.0,0.00018719,2]
[338333233,1726506638685,-500.0,0.00018719,2]
[338333234,1726506638694,-500.0,0.00018719,2]
[338333235,1726506638703,-371.05362436,0.00018719,2]
[338333236,1726506638712,-586.67522361,0.00018719,2]
[338333237,1726506638722,-500.0,0.00018719,2]
[338333238,1726506638731,-495.81614039,0.00018719,2]
[338333239,1726506638741,-500.0,0.00018719,2]
[338333240,1726506638750,-500.0,0.00018719,2]
[338333241,1726506638759,-500.0,0.00018719,2]
[338333242,1726506638768,-500.0,0.00018719,2]
[338333243,1726506638777,-625.79900834,0.00018719,2]
[338333244,1726506638786,-500.0,0.00018719,2]
[338333245,1726506638795,-500.0,0.00018719,2]
[338333246,1726506638805,-500.0,0.00018719,2]
[338333247,1726506638814,-500.0,0.00018719,2]
[338333248,1726506638823,-500.0,0.00018719,2]
[338333249,1726506638833,-500.0,0.00018719,2]
[338333250,1726506638842,-500.0,0.00018719,2]
[338333251,1726506638851,-578.47716052,0.00018719,2]
[338333252,1726506638861,-174.96180029,0.00018719,2]
[338333253,1726506638873,-500.0,0.00018719,2]
[338333254,1726506638882,-500.0,0.00018719,2]
[338333255,1726506638892,-300.0,0.00018719,2]
[338333256,1726506638901,-390.48831169,0.00018719,2]
[338333257,1726506638910,-500.0,0.00018719,2]
[338333258,1726506638920,-300.0,0.00018719,2]
[338333259,1726506638929,-300.0,0.00018719,2]
[338333260,1726506638940,-4239.95768657,0.0001872,5]
[338333261,1726506638950,-47841.3863999,0.0001872,2]
[338333262,1726506638960,-43740.3282314,0.0001872,2]
[338333263,1726506638969,-239.0,0.00018721,2]
[338333264,1726506638978,-411.3603175,0.0001873,2]
[338333265,1726506638988,-411.3603175,0.0001873,2]
[338333266,1726506638997,-411.3603175,0.0001873,2]
[338333267,1726506639007,-411.3603175,0.0001873,2]
[338333268,1726506639016,-411.3603175,0.0001873,2]
[338333269,1726506639026,-411.3603175,0.0001873,2]
[338333270,1726506639035,-411.3603175,0.0001873,2]